fUST/lending_fUST_20250604
["ID","MTS","AMOUNT","RATE_DAILY","PERIOD"]
[364249876,1749048656102,-782.54,0.00020273,2]
[364249877,1749048656113,-310.0,0.00020273,2]
[364249878,1749048656122,-738.59,0.00020273,2]
[364249879,1749048656132,-534.59,0.00020273,2]
[364249880,1749048656142,-882.73,0.00020273,2]
[364249881,1749048656152,-440.0,0.00020273,2]
[364249882,1749048656162,-963.7,0.00020273,2]
[364249883,1749048656171,-440.0,0.00020273,2]
[364249884,1749048656181,-1738.48,0.00020273,2]
[364249885,1749048656190,-529.08,0.00020273,2]
[364249886,1749048656200,-1279.44,0.00020273,2]
[364249887,1749048656209,-2500.89,0.00020273,2]
[364249888,1749048656219,-851.19,0.00020273,2]
[364249889,1749048656228,-4766.37,0.00020273,2]
[364249890,1749048656240,-621.14,0.00020273,2]
[364249891,1749048656249,-2345.7,0.00020273,2]
[364249892,1749048656259,-440.0,0.00020273,2]
[364249893,1749048656268,-3632.46,0.00020273,2]
[364249894,1749048656278,-4207.85,0.00020273,2]
[364249895,1749048656288,-440.0,0.00020273,2]
[364249896,1749048656298,-544.41,0.00020273,2]
[364249897,1749048656307,-671.03,0.00020273,2]
[364249898,1749048656317,-440.0,0.00020273,2]
[364249899,1749048656327,-831.2,0.00020273,2]
[364249900,1749048656336,-524.08,0.00020273,2]
[364249901,1749048656346,-1161.21,0.00020273,2]
[364249902,1749048656356,-440.0,0.00020273,2]
[364249903,1749048656366,-440.0,0.00020273,2]
[364249904,1749048656376,-757.95,0.00020273,2]
[364249905,1749048656386,-440.0,0.00020273,2]
[364249906,1749048656396,-3867.83,0.00020273,2]
[364249907,1749048656405,-676.86,0.00020273,2]
[364249908,1749048656415,-781.65,0.00020273,2]
[364249909,1749048656425,-2010.74,0.00020273,2]
[364249910,1749048656435,-440.0,0.00020273,2]
[364249911,1749048656444,-610.38,0.00020273,2]
[364249912,1749048656454,-578.26,0.00020273,2]
[364249913,1749048656464,-2078.12,0.00020273,2]
[364249914,1749048656474,-166.0,0.00020274,2]
[364249915,1749048656486,-1500.0,0.00020468,2]
[364249916,1749048656496,-1800.0,0.00020468,2]
[364249917,1749048656506,-2730.32847984,0.00020486,3]
[364249918,1749048656516,-500.0,0.00020495,2]
[364249919,1749048656525,-500.0,0.00020495,2]
[364249920,1749048656535,-500.0,0.00020495,2]
[364249921,1749048656544,-500.0,0.00020495,2]
[364249922,1749048656554,-500.0,0.00020495,2]
[364249923,1749048656564,-500.0,0.00020495,2]
[364249924,1749048656573,-500.0,0.00020495,2]
[364249925,1749048656583,-500.0,0.00020495,2]
[364249926,1749048656593,-500.0,0.00020547,2]
[364249927,1749048656603,-522.98,0.00020547,2]
[364249928,1749048656613,-782.54,0.00020547,2]
[364249929,1749048656622,-738.59,0.00020547,2]
[364249930,1749048656632,-534.59,0.00020547,2]
[364249931,1749048656641,-882.73,0.00020547,2]
[364249932,1749048656651,-440.0,0.00020547,2]
[364249933,1749048656661,-963.7,0.00020547,2]
[364249934,1749048656671,-440.0,0.00020547,2]
[364249935,1749048656680,-1738.48,0.00020547,2]
[364249936,1749048656690,-529.08,0.00020547,2]
[364249937,1749048656700,-1279.44,0.00020547,2]
[364249938,1749048656710,-2500.89,0.00020547,2]
[364249939,1749048656719,-851.19,0.00020547,2]
[364249940,1749048656729,-4766.37,0.00020547,2]
[364249941,1749048656740,-621.14,0.00020547,2]
[364249942,1749048656750,-2345.7,0.00020547,2]
[364249943,1749048656760,-440.0,0.00020547,2]
[364249944,1749048656770,-3632.46,0.00020547,2]
[364249945,1749048656779,-4207.85,0.00020547,2]
[364249946,1749048656788,-440.0,0.00020547,2]
[364249947,1749048656798,-544.41,0.00020547,2]
[364249948,1749048656807,-671.03,0.00020547,2]
[364249949,1749048656816,-440.0,0.00020547,2]
[364249950,1749048656825,-831.2,0.00020547,2]
[364249951,1749048656835,-524.08,0.00020547,2]
[364249952,1749048656844,-1161.21,0.00020547,2]
[364249953,1749048656854,-440.0,0.00020547,2]
[364249954,1749048656864,-440.0,0.00020547,2]
[364249955,1749048656874,-757.95,0.00020547,2]
[364249956,1749048656883,-440.0,0.00020547,2]
[364249957,1749048656893,-3867.83,0.00020547,2]
[364249958,1749048656903,-676.86,0.00020547,2]
[364249959,1749048656913,-781.65,0.00020547,2]
[364249960,1749048656923,-2010.74,0.00020547,2]
[364249961,1749048656932,-440.0,0.00020547,2]
[364249962,1749048656942,-610.38,0.00020547,2]
[364249963,1749048656952,-578.26,0.00020547,2]
[364249964,1749048656962,-2078.12,0.00020547,2]
[364249965,1749048656972,-500.0,0.00020548,2]
[364249966,1749048656982,-500.0,0.00020548,2]
[364249967,1749048656992,-481.96609228,0.00020548,2]
[364249968,1749048657002,-500.0,0.00020548,2]
[364249969,1749048657013,-500.0,0.00020548,2]
[364249970,1749048657023,-500.0,0.00020548,2]
[364249971,1749048657033,-500.0,0.00020548,2]
[364249972,1749048657043,-500.0,0.00020548,2]
[364249973,1749048657054,-500.0,0.00020548,2]
[364249974,1749048657065,-500.0,0.00020548,2]
[364249975,1749048657076,-500.0,0.00020548,2]
[364249976,1749048657086,-500.0,0.00020548,2]
[364249977,1749048657095,-546.72605437,0.00020565,2]
[364249978,1749048657105,-500.0,0.00020565,2]
[364249979,1749048657115,-500.0,0.00020565,2]
[364249980,1749048657124,-500.0,0.00020565,2]
[364249981,1749048657133,-975.11,0.000206,2]
[364249982,1749048657148,-2184.27,0.000206,2]
[364249983,1749048657158,-60622.05,0.000206,2]
[364249984,1749048657168,-2730.32847984,0.00020762,3]
[364249985,1749048657178,-575.49483425,0.00020796,2]
[364249986,1749048657188,-500.0,0.00020796,2]
[364249987,1749048657197,-500.0,0.00020796,2]
[364249988,1749048657207,-160.3024375,0.00020796,2]
[364249989,1749048657216,-500.0,0.000208,2]
[364249990,1749048657226,-522.98,0.00020821,2]
[364249991,1749048657237,-782.54,0.00020821,2]
[364249992,1749048657247,-738.59,0.00020821,2]
[364249993,1749048657256,-534.59,0.00020821,2]
[364249994,1749048657266,-882.73,0.00020821,2]
[364249995,1749048657276,-440.0,0.00020821,2]
[364249996,1749048657285,-963.7,0.00020821,2]
[364249997,1749048657295,-440.0,0.00020821,2]
[364249998,1749048657305,-1738.48,0.00020821,2]
[364249999,1749048657315,-529.08,0.00020821,2]
[364250000,1749048657325,-1279.44,0.00020821,2]
[364250001,1749048657335,-2500.89,0.00020821,2]
[364250002,1749048657345,-851.19,0.00020821,2]
[364250003,1749048657355,-4766.37,0.00020821,2]
[364250004,1749048657365,-621.14,0.00020821,2]
[364250005,1749048657375,-2345.7,0.00020821,2]
[364250006,1749048657385,-440.0,0.00020821,2]
[364250007,1749048657395,-3632.46,0.00020821,2]
[364250008,1749048657405,-4207.85,0.00020821,2]
[364250009,1749048657415,-440.0,0.00020821,2]
[364250010,1749048657514,-544.41,0.00020821,2]
[364250011,1749048657537,-671.03,0.00020821,2]
[364250012,1749048657546,-440.0,0.00020821,2]
[364250013,1749048657556,-831.2,0.00020821,2]
[364250014,1749048657568,-524.08,0.00020821,2]
[364250015,1749048657578,-1161.21,0.00020821,2]
[364250016,1749048657588,-440.0,0.00020821,2]
[364250017,1749048657598,-440.0,0.00020821,2]
[364250018,1749048657608,-757.95,0.00020821,2]
[364250019,1749048657618,-440.0,0.00020821,2]
[364250020,1749048657628,-3867.83,0.00020821,2]
[364250021,1749048657638,-676.86,0.00020821,2]
[364250022,1749048657648,-781.65,0.00020821,2]
[364250023,1749048657658,-2010.74,0.00020821,2]
[364250024,1749048657667,-231.35380217,0.00020821,2]
[364250025,1749048657676,-610.38,0.00020821,2]
[364250026,1749048657686,-578.26,0.00020821,2]
[364250027,1749048657696,-2078.12,0.00020821,2]
[364250028,1749048657706,-500.0,0.00020976,2]
[364250029,1749048657715,-1491.71526404,0.00021016,2]
[364250030,1749048657725,-2400.0,0.00021016,2]
[364250031,1749048657735,-2730.32847984,0.00021038,4]
[364250032,1749048657745,-500.0,0.00021043,2]
[364250033,1749048657754,-500.0,0.00021043,2]
[364250034,1749048657765,-1000.0,0.00021043,2]
[364250035,1749048657774,-500.0,0.00021043,2]
[364250036,1749048657784,-1000.0,0.00021043,2]
[364250037,1749048657793,-1000.0,0.00021043,2]
[364250038,1749048657803,-1000.0,0.00021043,2]
[364250039,1749048657812,-1000.0,0.00021043,2]
[364250040,1749048657822,-500.0,0.00021055,2]
[364250041,1749048657831,-500.0,0.00021055,2]
[364250042,1749048657840,-500.0,0.00021055,2]
[364250043,1749048657850,-500.0,0.00021055,2]
[364250044,1749048657859,-500.0,0.00021055,2]
[364250045,1749048657868,-500.0,0.00021058,2]
[364250046,1749048657878,-500.0,0.00021058,2]
[364250047,1749048657887,-500.0,0.00021058,2]
[364250048,1749048657897,-500.0,0.00021095,3]
[364250049,1749048657907,-522.98,0.00021095,2]
[364250050,1749048657916,-782.54,0.00021095,2]
[364250051,1749048657926,-738.59,0.00021095,2]
[364250052,1749048657935,-534.59,0.00021095,2]
[364250053,1749048657944,-882.73,0.00021095,2]
[364250054,1749048657954,-440.0,0.00021095,2]
[364250055,1749048657963,-963.7,0.00021095,2]
[364250056,1749048657973,-440.0,0.00021095,2]
[364250057,1749048657983,-1738.48,0.00021095,2]
[364250058,1749048657993,-529.08,0.00021095,2]
[364250059,1749048658003,-1279.44,0.00021095,2]
[364250060,1749048658012,-2500.89,0.00021095,2]
[364250061,1749048658021,-851.19,0.00021095,2]
[364250062,1749048658031,-4766.37,0.00021095,2]
[364250063,1749048658040,-621.14,0.00021095,2]
[364250064,1749048658049,-2345.7,0.00021095,2]
[364250065,1749048658059,-440.0,0.00021095,2]
[364250066,1749048658071,-3632.46,0.00021095,2]
[364250067,1749048658080,-4207.85,0.00021095,2]
[364250068,1749048658090,-549.29536243,0.00021095,2]
[364250069,1749048658099,-544.41,0.00021095,2]
[364250070,1749048658110,-671.03,0.00021095,2]
[364250071,1749048658119,-472.5,0.00021095,2]
[364250072,1749048658129,-831.2,0.00021095,2]
[364250073,1749048658139,-524.08,0.00021095,2]
[364250074,1749048658150,-1161.21,0.00021095,2]
[364250075,1749048658161,-440.0,0.00021095,2]
[364250076,1749048658171,-440.0,0.00021095,2]
[364250077,1749048658181,-757.95,0.00021095,2]
[364250078,1749048658191,-440.0,0.00021095,2]
[364250079,1749048658201,-3867.83,0.00021095,2]
[364250080,1749048658210,-676.86,0.00021095,2]
[364250081,1749048658220,-781.65,0.00021095,2]
[364250082,1749048658230,-2010.74,0.00021095,2]
[364250083,1749048658241,-610.38,0.00021095,2]
[364250084,1749048658250,-578.26,0.00021095,2]
[364250085,1749048658259,-2078.12,0.00021095,2]
[364250086,1749048658269,-1000.13213754,0.00021097,2]
[364250087,1749048658278,-1000.0,0.00021113,2]
[364250088,1749048658287,-1000.0,0.00021113,2]
[364250089,1749048658296,-1000.0,0.00021113,2]
[364250090,1749048658306,-2000.0,0.00021164,2]
[364250091,1749048658317,-2730.32847984,0.00021314,5]
[364250092,1749048658327,-1000.0,0.00021344,2]
[364250093,1749048658336,-1000.0,0.00021344,2]
[364250094,1749048658347,-471.23588442,0.00021348,2]
[364250095,1749048658357,-522.98,0.00021369,2]
[364250096,1749048658367,-782.54,0.00021369,2]
[364250097,1749048658377,-738.59,0.00021369,2]
[364250098,1749048658387,-534.59,0.00021369,2]
[364250099,1749048658396,-882.73,0.00021369,2]
[364250100,1749048658406,-440.0,0.00021369,2]
[364250101,1749048658415,-963.7,0.00021369,2]
[364250102,1749048658425,-440.0,0.00021369,2]
[364250103,1749048658435,-1738.48,0.00021369,2]
[364250104,1749048658445,-529.08,0.00021369,2]
[364250105,1749048658456,-1279.44,0.00021369,2]
[364250106,1749048658467,-2500.89,0.00021369,2]
[364250107,1749048658485,-851.19,0.00021369,2]
[364250108,1749048658497,-4766.37,0.00021369,2]
[364250109,1749048658507,-621.14,0.00021369,2]
[364250110,1749048658519,-2345.7,0.00021369,2]
[364250111,1749048658529,-544.77,0.00021369,2]
[364250112,1749048658539,-3632.46,0.00021369,2]
[364250113,1749048658549,-4207.85,0.00021369,2]
[364250114,1749048658559,-544.41,0.00021369,2]
[364250115,1749048658570,-671.03,0.00021369,2]
[364250116,1749048658580,-831.2,0.00021369,2]
[364250117,1749048658591,-524.08,0.00021369,2]
[364250118,1749048658602,-1161.21,0.00021369,2]
[364250119,1749048658612,-440.0,0.00021369,2]
[364250120,1749048658623,-440.0,0.00021369,2]
[364250121,1749048658634,-757.95,0.00021369,2]
[364250122,1749048658644,-440.0,0.00021369,2]
[364250123,1749048658654,-3867.83,0.00021369,2]
[364250124,1749048658665,-676.86,0.00021369,2]
[364250125,1749048658676,-781.65,0.00021369,2]
[364250126,1749048658687,-2010.74,0.00021369,2]
[364250127,1749048658697,-610.38,0.00021369,2]
[364250128,1749048658707,-578.26,0.00021369,2]
[364250129,1749048658718,-2078.12,0.00021369,2]
[364250130,1749048658728,-429.0,0.00021452,2]
[364250131,1749048658739,-823.0,0.00021452,2]
[364250132,1749048658749,-151.0,0.00021481,2]
[364250133,1749048658759,-151.0,0.00021481,2]
[364250134,1749048658769,-151.0,0.00021481,2]
[364250135,1749048658779,-182.00546711,0.00021481,2]
[364250136,1749048658789,-287.63485949,0.00021481,2]
[364250137,1749048658799,-185.15931013,0.00021481,2]
[364250138,1749048658809,-500.0,0.00021481,2]
[364250139,1749048658819,-500.0,0.00021481,2]
[364250140,1749048658829,-200.85488272,0.00021481,2]
[364250141,1749048658839,-500.0,0.00021481,2]
[364250142,1749048658849,-151.0,0.00021481,2]
[364250143,1749048658859,-198.0,0.00021481,2]
[364250144,1749048658869,-154.2438045,0.00021481,2]
[364250145,1749048658879,-500.0,0.00021481,2]
[364250146,1749048658889,-800.0,0.00021508,2]
[364250147,1749048658899,-151.0,0.00021508,2]
[364250148,1749048658910,-151.0,0.00021508,2]
[364250149,1749048658920,-151.0,0.00021508,2]
[364250150,1749048658930,-500.0,0.00021508,2]
[364250151,1749048658940,-500.0,0.00021508,2]
[364250152,1749048658950,-500.0,0.00021508,2]
[364250153,1749048658960,-151.0,0.00021508,2]
[364250154,1749048658970,-500.0,0.00021508,2]
[364250155,1749048658983,-1000.0,0.00021524,2]
[364250156,1749048658993,-500.0,0.00021536,2]
[364250157,1749048659003,-500.0,0.00021536,2]
[364250158,1749048659013,-500.0,0.00021536,2]
[364250159,1749048659023,-205.60639345,0.00021536,2]
[364250160,1749048659034,-500.0,0.00021536,2]
[364250161,1749048659043,-500.0,0.00021563,2]
[364250162,1749048659053,-500.0,0.00021563,2]
[364250163,1749048659064,-500.0,0.00021563,2]
[364250164,1749048659077,-500.0,0.00021563,2]
[364250165,1749048659087,-3000.0,0.00021564,2]
[364250166,1749048659097,-250.0,0.00021588,2]
[364250167,1749048659107,-2730.32847984,0.0002159,5]
[364250168,1749048659117,-501.15096168,0.00021591,2]
[364250169,1749048659127,-500.0,0.00021591,2]
[364250170,1749048659138,-501.59226018,0.00021591,2]
[364250171,1749048659149,-500.0,0.00021591,2]
[364250172,1749048659160,-500.0,0.00021591,2]
[364250173,1749048659170,-352.94100457,0.00021591,2]
[364250174,1749048659180,-1500.0,0.00021591,2]
[364250175,1749048659191,-500.0,0.00021591,2]
[364250176,1749048659201,-1000.0,0.00021603,2]
[364250177,1749048659211,-1000.0,0.00021603,2]
[364250178,1749048659221,-501.11265055,0.00021603,2]
[364250179,1749048659233,-509.59323327,0.00021603,2]
[364250180,1749048659243,-500.50520965,0.00021603,2]
[364250181,1749048659253,-1000.0,0.00021606,2]
[364250182,1749048659263,-1000.0,0.00021606,2]
[364250183,1749048659272,-503.81646108,0.00021606,2]
[364250184,1749048659282,-500.0,0.00021618,2]
[364250185,1749048659293,-500.0,0.00021643,4]
[364250186,1749048659303,-522.98,0.00021643,2]
[364250187,1749048659313,-782.54,0.00021643,2]
[364250188,1749048659323,-738.59,0.00021643,2]
[364250189,1749048659332,-534.59,0.00021643,2]
[364250190,1749048659454,-882.73,0.00021643,2]
[364250191,1749048659465,-552.5117678,0.00021643,2]
[364250192,1749048659475,-963.7,0.00021643,2]
[364250193,1749048659487,-153.37,0.00021643,2]
[364250194,1749048659496,-1738.48,0.00021643,2]
[364250195,1749048659510,-529.08,0.00021643,2]
[364250196,1749048659521,-1279.44,0.00021643,2]
[364250197,1749048659531,-2500.89,0.00021643,2]
[364250198,1749048659540,-851.19,0.00021643,2]
[364250199,1749048659551,-4766.37,0.00021643,2]
[364250200,1749048659560,-621.14,0.00021643,2]
[364250201,1749048659571,-2345.7,0.00021643,2]
[364250202,1749048659581,-3632.46,0.00021643,2]
[364250203,1749048659591,-4207.85,0.00021643,2]
[364250204,1749048659600,-544.41,0.00021643,2]
[364250205,1749048659610,-671.03,0.00021643,2]
[364250206,1749048659620,-831.2,0.00021643,2]
[364250207,1749048659630,-524.08,0.00021643,2]
[364250208,1749048659640,-1161.21,0.00021643,2]
[364250209,1749048659650,-440.0,0.00021643,2]
[364250210,1749048659660,-440.0,0.00021643,2]
[364250211,1749048659669,-757.95,0.00021643,2]
[364250212,1749048659680,-220.0,0.00021643,2]
[364250213,1749048659693,-3867.83,0.00021643,2]
[364250214,1749048659704,-676.86,0.00021643,2]
[364250215,1749048659713,-781.65,0.00021643,2]
[364250216,1749048659723,-2010.74,0.00021643,2]
[364250217,1749048659733,-610.38,0.00021643,2]
[364250218,1749048659744,-578.26,0.00021643,2]
[364250219,1749048659753,-2078.12,0.00021643,2]
[364250220,1749048659763,-500.0,0.00021645,2]
[364250221,1749048659773,-1000.0,0.00021661,2]
[364250222,1749048659782,-1595.21769639,0.00021661,2]
[364250223,1749048659792,-506.65956259,0.00021661,2]
[364250224,1749048659803,-500.0,0.00021673,2]
[364250225,1749048659813,-500.0,0.000217,2]
[364250226,1749048659822,-500.0,0.00021728,2]
[364250227,1749048659832,-500.0,0.00021755,2]
[364250228,1749048659842,-500.0,0.00021782,2]
[364250229,1749048659852,-1895.31327686,0.00021861,2]
[364250230,1749048659861,-151.0,0.00021861,2]
[364250231,1749048659871,-207.4,0.00021861,2]
[364250232,1749048659881,-500.0,0.00021861,2]
[364250233,1749048659890,-500.0,0.00021861,2]
[364250234,1749048659900,-500.0,0.00021861,2]
[364250235,1749048659910,-500.0,0.00021861,2]
[364250236,1749048659920,-500.0,0.00021861,2]
[364250237,1749048659929,-500.0,0.00021861,2]
[364250238,1749048659939,-500.0,0.00021861,2]
[364250239,1749048659949,-500.0,0.00021861,2]
[364250240,1749048659959,-500.0,0.00021861,2]
[364250241,1749048659968,-500.0,0.00021861,2]
[364250242,1749048659977,-5000.0,0.00021861,2]
[364250243,1749048659988,-500.0,0.00021861,2]
[364250244,1749048659998,-500.0,0.00021861,2]
[364250245,1749048660008,-500.0,0.00021861,2]
[364250246,1749048660018,-500.0,0.00021861,2]
[364250247,1749048660028,-500.0,0.00021861,2]
[364250248,1749048660039,-2730.32847984,0.00021866,6]
[364250249,1749048660050,-800.0,0.0002188,2]
[364250250,1749048660061,-1500.0,0.00021892,2]
[364250251,1749048660074,-60622.05,0.000219,2]
[364250252,1749048660084,-522.98,0.00021917,2]
[364250253,1749048660095,-782.54,0.00021917,2]
[364250254,1749048660106,-500.0,0.00021917,2]
[364250255,1749048660116,-500.0,0.00021917,2]
[364250256,1749048660127,-500.0,0.00021917,2]
[364250257,1749048660138,-500.0,0.00021917,2]
[364250258,1749048660149,-644.67946039,0.00021917,2]
[364250259,1749048660159,-738.59,0.00021917,2]
[364250260,1749048660169,-534.59,0.00021917,2]
[364250261,1749048660179,-882.73,0.00021917,2]
[364250262,1749048660189,-963.7,0.00021917,2]
[364250263,1749048660198,-1738.48,0.00021917,2]
[364250264,1749048660208,-529.08,0.00021917,2]
[364250265,1749048660220,-1279.44,0.00021917,2]
[364250266,1749048660230,-2500.89,0.00021917,2]
[364250267,1749048660242,-851.19,0.00021917,2]
[364250268,1749048660252,-4766.37,0.00021917,2]
[364250269,1749048660262,-621.14,0.00021917,2]
[364250270,1749048660272,-2345.7,0.00021917,2]
[364250271,1749048660282,-3632.46,0.00021917,2]
[364250272,1749048660292,-4207.85,0.00021917,2]
[364250273,1749048660302,-544.41,0.00021917,2]
[364250274,1749048660312,-671.03,0.00021917,2]
[364250275,1749048660322,-831.2,0.00021917,2]
[364250276,1749048660332,-524.08,0.00021917,2]
[364250277,1749048660342,-1161.21,0.00021917,2]
[364250278,1749048660353,-440.0,0.00021917,2]
[364250279,1749048660363,-500.0,0.00021917,2]
[364250280,1749048660375,-440.0,0.00021917,2]
[364250281,1749048660387,-757.95,0.00021917,2]
[364250282,1749048660397,-3867.83,0.00021917,2]
[364250283,1749048660408,-676.86,0.00021917,2]
[364250284,1749048660418,-781.65,0.00021917,2]
[364250285,1749048660429,-2010.74,0.00021917,2]
[364250286,1749048660439,-610.38,0.00021917,2]
[364250287,1749048660449,-578.26,0.00021917,2]
[364250288,1749048660459,-2078.12,0.00021917,2]
[364250289,1749048660468,-118796.88,0.00022,7]
[364250290,1749048660479,-2184.27,0.00022,7]
[364250291,1749048660490,-212.90465545,0.00022,7]
[364250292,1749048660500,-1500.0,0.00022072,2]
[364250293,1749048660511,-151.0,0.000221,9]
[364250294,1749048660521,-3600.0,0.00022112,2]
[364250295,1749048660532,-2000.0,0.00022139,2]
[364250296,1749048660542,-2730.32847984,0.00022141,6]
[364250297,1749048660551,-500.0,0.00022151,2]
[364250298,1749048660561,-1500.0,0.00022154,2]
[364250299,1749048660571,-500.0,0.00022154,2]
[364250300,1749048660581,-12500.0,0.00022156,2]
[364250301,1749048660591,-12500.0,0.00022165,2]
[364250302,1749048660601,-12500.0,0.00022173,2]
[364250303,1749048660610,-12500.0,0.00022182,2]
[364250304,1749048660620,-320.47511474,0.0002219,2]
[364250305,1749048660629,-320.0,0.0002219,2]
[364250306,1749048660639,-200.0,0.0002219,2]
[364250307,1749048660648,-200.0,0.0002219,2]
[364250308,1749048660657,-12500.0,0.00022191,2]
[364250309,1749048660667,-229.39,0.00022191,5]
[364250310,1749048660677,-522.98,0.00022191,2]
[364250311,1749048660686,-782.54,0.00022191,2]
[364250312,1749048660696,-738.59,0.00022191,2]
[364250313,1749048660707,-534.59,0.00022191,2]
[364250314,1749048660717,-882.73,0.00022191,2]
[364250315,1749048660726,-963.7,0.00022191,2]
[364250316,1749048660737,-1738.48,0.00022191,2]
[364250317,1749048660747,-529.08,0.00022191,2]
[364250318,1749048660757,-1279.44,0.00022191,2]
[364250319,1749048660766,-2500.89,0.00022191,2]
[364250320,1749048660776,-851.19,0.00022191,2]
[364250321,1749048660785,-4766.37,0.00022191,2]
[364250322,1749048660795,-621.14,0.00022191,2]
[364250323,1749048660805,-2345.7,0.00022191,2]
[364250324,1749048660815,-3632.46,0.00022191,2]
[364250325,1749048660825,-4207.85,0.00022191,2]
[364250326,1749048660834,-544.41,0.00022191,2]
[364250327,1749048660844,-671.03,0.00022191,2]
[364250328,1749048660853,-831.2,0.00022191,2]
[364250329,1749048660862,-524.08,0.00022191,2]
[364250330,1749048660872,-1161.21,0.00022191,2]
[364250331,1749048660881,-350.00000001,0.00022191,2]
[364250332,1749048660891,-757.95,0.00022191,2]
[364250333,1749048660901,-3867.83,0.00022191,2]
[364250334,1749048660911,-676.86,0.00022191,2]
[364250335,1749048660920,-781.65,0.00022191,2]
[364250336,1749048660929,-2010.74,0.00022191,2]
[364250337,1749048660938,-610.38,0.00022191,2]
[364250338,1749048660948,-578.26,0.00022191,2]
[364250339,1749048660958,-2078.12,0.00022191,2]
[364250340,1749048660968,-200.0,0.00022192,2]
[364250341,1749048660978,-200.0,0.00022192,2]
[364250342,1749048660988,-975.11,0.000222,7]
[364250343,1749048660998,-2000.0,0.0002226,2]
[364250344,1749048661008,-240.0,0.00022408,2]
[364250345,1749048661018,-200.0,0.00022408,2]
[364250346,1749048661028,-5000.0,0.00022409,2]
[364250347,1749048661037,-2730.32847984,0.00022417,7]
[364250348,1749048661047,-1016.1556834,0.0002244,2]
[364250349,1749048661056,-326.06316264,0.00022464,2]
[364250350,1749048661066,-522.98,0.00022465,2]
[364250351,1749048661076,-782.54,0.00022465,2]
[364250352,1749048661086,-738.59,0.00022465,2]
[364250353,1749048661096,-534.59,0.00022465,2]
[364250354,1749048661105,-882.73,0.00022465,2]
[364250355,1749048661186,-963.7,0.00022465,2]
[364250356,1749048661207,-1738.48,0.00022465,2]
[364250357,1749048661218,-529.08,0.00022465,2]
[364250358,1749048661229,-1279.44,0.00022465,2]
[364250359,1749048661240,-2500.89,0.00022465,2]
[364250360,1749048661249,-851.19,0.00022465,2]
[364250361,1749048661259,-4766.37,0.00022465,2]
[364250362,1749048661269,-621.14,0.00022465,2]
[364250363,1749048661279,-2345.7,0.00022465,2]
[364250364,1749048661289,-3632.46,0.00022465,2]
[364250365,1749048661299,-4207.85,0.00022465,2]
[364250366,1749048661308,-544.41,0.00022465,2]
[364250367,1749048661318,-671.03,0.00022465,2]
[364250368,1749048661328,-831.2,0.00022465,2]
[364250369,1749048661338,-524.08,0.00022465,2]
[364250370,1749048661347,-1161.21,0.00022465,2]
[364250371,1749048661357,-500.0,0.00022465,2]
[364250372,1749048661367,-757.95,0.00022465,2]
[364250373,1749048661377,-3867.83,0.00022465,2]
[364250374,1749048661386,-676.86,0.00022465,2]
[364250375,1749048661396,-781.65,0.00022465,2]